bitfinex/quotes_BTCUSD_20230111
["timestamp","ask_amount","ask_price","bid_price","bid_amount"]
[1673437543375,5.17915965,17446.0,17445.0,0.00392717]
[1673437544641,4.98438373,17446.0,17445.0,0.00392717]
[1673437545396,4.74756719,17446.0,17445.0,0.00392717]
[1673437545648,5.26272101,17446.0,17445.0,0.00392717]
[1673437545898,4.74756719,17446.0,17445.0,0.00392717]
[1673437546918,4.80494287,17446.0,17445.0,0.00392717]
[1673437547193,5.38433393,17446.0,17445.0,0.00392717]
[1673437548499,5.89944497,17446.0,17445.0,0.00392717]
[1673437548754,5.89944634,17446.0,17445.0,0.00392717]
[1673437549008,5.62141489,17446.0,17445.0,0.00392717]
[1673437549520,6.2807107,17446.0,17445.0,0.00392717]
[1673437549774,6.27180772,17446.0,17445.0,0.00392717]
[1673437550023,5.69241666,17446.0,17445.0,0.00392717]
[1673437550818,5.63504098,17446.0,17445.0,0.00392717]
[1673437552085,5.69241666,17446.0,17445.0,0.00392717]
[1673437552610,4.80464302,17446.0,17445.0,0.00392717]
[1673437553644,4.74726734,17446.0,17445.0,0.00392717]
[1673437553900,4.80464302,17446.0,17445.0,0.00392717]
[1673437555683,5.34029666,17446.0,17445.0,0.00392717]
[1673437555944,4.53595302,17446.0,17445.0,0.00392717]
[1673437556451,4.80466302,17446.0,17445.0,0.00392717]
[1673437556706,5.38405408,17446.0,17445.0,0.00392717]
[1673437557734,4.80466302,17446.0,17445.0,0.00392717]
[1673437557986,5.32551478,17446.0,17445.0,0.00392717]
[1673437558494,5.84103004,17446.0,17445.0,0.00392717]
[1673437558871,5.32551478,17446.0,17445.0,0.00392717]
[1673437559020,5.84103041,17446.0,17445.0,0.00392717]
[1673437559280,5.84147999,17446.0,17445.0,0.00392717]
[1673437559536,5.84147757,17446.0,17445.0,0.00392717]
[1673437559789,5.56329881,17446.0,17445.0,0.00382446]
[1673437560308,5.50592313,17446.0,17445.0,0.00382446]
[1673437560562,5.78409641,17446.0,17445.0,0.00382446]
[1673437560810,5.50592313,17446.0,17445.0,0.00382446]
[1673437562121,4.74828339,17446.0,17445.0,0.00382446]
[1673437562370,4.80565907,17446.0,17445.0,0.00382446]
[1673437562661,3.46820607,17446.0,17445.0,0.00382446]
[1673437562925,3.82713407,17446.0,17445.0,0.00382446]
[1673437563921,4.12713407,17446.0,17445.0,0.00382446]
[1673437564173,3.82713407,17446.0,17445.0,0.00382446]
[1673437569529,3.31161076,17446.0,17445.0,0.00382446]
[1673437572819,3.14741076,17446.0,17445.0,0.00382446]
[1673437573331,3.66293407,17446.0,17445.0,0.00382446]
[1673437573828,3.94954407,17446.0,17445.0,0.00382446]
[1673437575362,3.43402076,17446.0,17445.0,0.00382446]
[1673437575864,3.07509276,17446.0,17445.0,0.00382446]
[1673437576111,3.94954407,17446.0,17445.0,0.00382446]
[1673437576364,4.24954407,17446.0,17445.0,0.00382446]
[1673437580614,3.94954407,17446.0,17445.0,0.00382446]
[1673437582394,3.43402076,17446.0,17445.0,0.00382446]
[1673437583490,3.07509276,17446.0,17445.0,0.00382446]
[1673437583743,3.59061607,17446.0,17445.0,0.00382446]
[1673437583957,3.94954407,17446.0,17445.0,0.00382446]
[1673437584213,4.24954407,17446.0,17445.0,0.00382446]
[1673437584464,3.94954407,17446.0,17445.0,0.00371999]
[1673437584714,4.24954407,17446.0,17445.0,0.00371999]
[1673437585216,3.94954407,17446.0,17445.0,0.00371999]
[1673437586459,4.24954407,17446.0,17445.0,0.00371999]
[1673437586712,3.94954407,17446.0,17445.0,0.00371999]
[1673437587219,4.22409219,17446.0,17445.0,0.00371999]
[1673437587473,4.70086144,17446.0,17445.0,0.00371999]
[1673437587721,4.42405392,17446.0,17445.0,0.00371999]
[1673437589780,4.12405392,17446.0,17445.0,0.00371999]
[1673437590039,4.42405392,17446.0,17445.0,0.00371999]
[1673437596355,4.70107422,17446.0,17445.0,0.00371999]
[1673437596601,4.18555091,17446.0,17445.0,0.00371999]
[1673437597386,3.47599837,17446.0,17445.0,0.00371999]
[1673437597643,3.85776724,17446.0,17445.0,0.00371999]
[1673437597896,4.13478754,17446.0,17445.0,0.00371999]
[1673437600260,4.13480754,17446.0,17445.0,0.00371999]
[1673437601571,5.30814627,17446.0,17445.0,0.00371999]
[1673437602083,4.72875521,17446.0,17445.0,0.00371999]
[1673437602886,4.89225521,17446.0,17445.0,0.00371999]
[1673437603138,4.60562521,17446.0,17445.0,0.00371999]
[1673437603423,4.89226521,17446.0,17445.0,0.00371999]
[1673437604947,4.89226521,17446.0,17445.0,0.00361731]
[1673437605463,5.47165627,17446.0,17445.0,0.00361731]
[1673437605965,4.89226521,17446.0,17445.0,0.00361731]
[1673437606970,4.23347604,17446.0,17445.0,0.00361731]
[1673437607472,5.27430964,17446.0,17445.0,0.00361731]
[1673437607723,5.03663175,17446.0,17445.0,0.00361731]
[1673437607984,4.80171794,17446.0,17445.0,0.00249189]
[1673437608747,4.74434226,17446.0,17445.0,0.00249189]
[1673437608993,0.6439,17445.0,17444.0,0.00537102]
[1673437609238,4.3731463,17445.0,17444.0,0.00537102]
[1673437609484,4.6501666,17445.0,17444.0,0.00537102]
[1673437610218,5.36555766,17445.0,17444.0,0.00637102]
[1673437610727,5.65222766,17445.0,17444.0,0.00637102]
[1673437611726,5.36555766,17445.0,17444.0,0.00637102]
[1673437612203,5.0728366,17445.0,17444.0,0.00637102]
[1673437613011,4.49330235,17445.0,17444.0,0.00637102]
[1673437613257,5.0728366,17445.0,17444.0,0.00637102]
[1673437614259,4.49330235,17445.0,17444.0,0.00637102]
[1673437615736,5.0728366,17445.0,17444.0,0.00637102]
[1673437616240,4.49330235,17445.0,17444.0,0.00637102]
[1673437616999,5.03461217,17445.0,17444.0,0.00637102]
[1673437617512,4.49330235,17445.0,17444.0,0.00637102]
[1673437619754,5.00798943,17445.0,17444.0,0.00637102]
[1673437620004,4.49330235,17445.0,17444.0,0.00637102]
[1673437620257,5.0080018,17445.0,17444.0,0.00637102]
[1673437620512,4.49330235,17445.0,17444.0,0.00637102]
[1673437622820,4.35969052,17445.0,17444.0,0.00637102]
[1673437623082,4.95106462,17445.0,17444.0,0.00637102]
[1673437623330,5.18876648,17445.0,17444.0,0.00637102]
[1673437623978,5.47480553,17445.0,17444.0,0.00637102]
[1673437624236,4.36870482,17445.0,17444.0,0.00637102]
[1673437624747,5.01948208,17445.0,17444.0,0.00637102]
[1673437625010,5.59642678,17445.0,17444.0,0.00637102]
[1673437625263,4.36870482,17445.0,17444.0,0.00637102]
[1673437628346,3.95318392,17445.0,17444.0,0.00637102]
[1673437628608,4.36870482,17445.0,17444.0,0.00637102]
[1673437631451,4.36870482,17445.0,17444.0,0.00627417]
[1673437632473,4.9551006,17445.0,17444.0,0.00627417]
[1673437633771,5.52763013,17445.0,17444.0,0.00627417]
[1673437634278,4.36870482,17445.0,17444.0,0.00627417]
[1673437634531,5.55672374,17445.0,17444.0,0.00627417]
[1673437634794,4.97718949,17445.0,17444.0,0.00627417]
[1673437637865,4.90621551,17445.0,17444.0,0.00627417]
[1673437638117,4.57883651,17445.0,17444.0,0.00627417]
[1673437638381,4.21990851,17445.0,17444.0,0.00627417]
[1673437639203,3.62596084,17445.0,17444.0,0.00627417]
[1673437639423,3.11090022,17445.0,17444.0,0.00627417]
[1673437639676,3.39752022,17445.0,17444.0,0.00627417]
[1673437640940,2.98199932,17445.0,17444.0,0.00627417]
[1673437641486,2.69537932,17445.0,17444.0,0.00627417]
[1673437641776,1.87231575,17445.0,17444.0,0.65261835]
[1673437642003,1.92096664,17445.0,17444.0,0.65261835]
[1673437642778,1.7492829,17445.0,17444.0,0.65261835]
[1673437643157,0.3367833,17445.0,17444.0,1.06676633]
[1673437643308,0.3367833,17445.0,17444.0,0.65261835]
[1673437643604,0.5943229,17445.0,17444.0,1.01154635]
[1673437643870,0.2007833,17445.0,17444.0,0.65161835]
[1673437644171,0.2147833,17445.0,17444.0,1.03554635]
[1673437645015,0.2147833,17445.0,17444.0,0.67661835]
[1673437645268,0.7880133,17445.0,17444.0,0.67661835]
[1673437645842,0.61631817,17445.0,17444.0,0.67661835]
[1673437646888,0.61631817,17445.0,17444.0,1.03554635]
[1673437647418,0.61631817,17445.0,17444.0,0.67661835]
[1673437647672,0.61631817,17445.0,17444.0,1.03554635]
[1673437647918,0.61631817,17445.0,17444.0,0.67661835]
[1673437648496,0.61631817,17445.0,17444.0,1.03554635]
[1673437648680,0.61631817,17445.0,17444.0,0.67661835]
[1673437648936,0.61631817,17445.0,17444.0,1.03554635]
[1673437649747,0.61631817,17445.0,17444.0,0.67661835]
[1673437649972,0.61631817,17445.0,17444.0,1.03554635]
[1673437650226,0.61631817,17445.0,17444.0,0.67661835]
[1673437650482,0.61631817,17445.0,17444.0,1.03554635]
[1673437650742,0.61631817,17445.0,17444.0,0.67661835]
[1673437651001,0.61631817,17445.0,17444.0,1.03554635]
[1673437651510,0.61631817,17445.0,17444.0,0.67661835]
[1673437651787,0.61631817,17445.0,17444.0,1.03554635]
[1673437652043,0.61631817,17445.0,17444.0,0.67661835]
[1673437652306,0.61631817,17445.0,17444.0,1.03554635]
[1673437652552,0.04308817,17445.0,17444.0,1.03554635]
[1673437652812,0.04308817,17445.0,17444.0,0.84021835]
[1673437653825,0.04308817,17445.0,17444.0,1.19914635]
[1673437660772,0.04308817,17445.0,17444.0,0.84021835]
[1673437662063,0.04308817,17445.0,17444.0,0.67661835]
[1673437664315,0.06308817,17445.0,17444.0,0.67661835]
[1673437665335,0.06308817,17445.0,17444.0,0.67651405]
[1673437674020,0.2347833,17445.0,17444.0,0.67651405]
[1673437674798,1.0655529,17445.0,17444.0,0.03016987]
[1673437675062,2.05454676,17445.0,17444.0,0.03016987]
[1673437675331,2.62777676,17445.0,17444.0,0.03016987]
[1673437675542,2.97115563,17445.0,17444.0,0.03016987]
[1673437675819,2.7994605,17445.0,17444.0,0.03016987]
[1673437676334,2.3839396,17445.0,17444.0,0.03016987]
[1673437676635,2.7994605,17445.0,17444.0,0.03016987]
[1673437676859,2.3839396,17445.0,17444.0,0.03016987]
[1673437677635,2.5557211,17445.0,17444.0,0.03016987]
[1673437678159,2.38401098,17445.0,17444.0,0.03016987]
[1673437679378,3.22885298,17445.0,17444.0,0.03016987]
[1673437679638,3.10523393,17445.0,17444.0,0.03016987]
[1673437679895,2.88484136,17445.0,17444.0,0.03016987]
[1673437680154,3.15019196,17445.0,17444.0,0.03016987]
[1673437680519,2.79126396,17445.0,17444.0,0.03016987]
[1673437685328,2.93407238,17445.0,17444.0,0.03016987]
[1673437685616,3.22069238,17445.0,17444.0,0.03016987]
[1673437688295,3.22069238,17445.0,17444.0,0.0301029]
[1673437688546,2.86208999,17445.0,17444.0,0.0301029]
[1673437688808,3.27761089,17445.0,17444.0,0.0301029]
[1673437689631,2.93407238,17445.0,17444.0,0.0301029]
[1673437692042,3.29300038,17445.0,17444.0,0.0301029]
[1673437692267,2.93407238,17445.0,17444.0,0.0301029]
[1673437700791,2.50463396,17445.0,17444.0,0.0301029]
[1673437703780,2.86356196,17445.0,17444.0,0.0301029]
[1673437704284,2.50463396,17445.0,17444.0,0.0301029]
[1673437704785,2.79126396,17445.0,17444.0,0.0301029]
[1673437705545,3.15019196,17445.0,17444.0,0.0301029]
[1673437706071,2.79126396,17445.0,17444.0,0.0301029]
[1673437707048,3.15019196,17445.0,17444.0,0.0301029]
[1673437707292,2.79126396,17445.0,17444.0,0.0301029]
[1673437708543,2.79126396,17445.0,17444.0,0.0299955]
[1673437709058,3.15019196,17445.0,17444.0,0.0299955]
[1673437709309,2.86356196,17445.0,17444.0,0.0299955]
[1673437709580,3.15019196,17445.0,17444.0,0.0299955]
[1673437710071,2.86356196,17445.0,17444.0,0.0299955]
[1673437710572,2.79126396,17445.0,17444.0,0.0299955]
[1673437714322,2.08911306,17445.0,17444.0,0.0299955]
[1673437714572,2.93429505,17445.0,17444.0,0.0299955]
[1673437714786,2.50463396,17445.0,17444.0,0.0299955]
[1673437716844,2.52463396,17445.0,17444.0,0.0299955]
[1673437719403,2.81125396,17445.0,17444.0,0.0299955]
[1673437720428,3.32631458,17445.0,17444.0,0.0299955]
[1673437725189,3.68524258,17445.0,17444.0,0.0299955]
[1673437726152,3.32631458,17445.0,17444.0,0.0299955]
[1673437728683,3.32632458,17445.0,17444.0,0.0299955]
[1673437731503,3.32631458,17445.0,17444.0,0.0299955]
[1673437733052,3.32631458,17445.0,17444.0,0.02992746]
[1673437733266,3.32624785,17445.0,17444.0,0.02992746]
[1673437741055,3.03962785,17445.0,17444.0,0.02992746]
[1673437741568,3.32624785,17445.0,17444.0,0.02992746]
[1673437743517,2.81118723,17445.0,17444.0,0.02992746]
[1673437744042,3.32624785,17445.0,17444.0,0.02992746]
[1673437744293,2.81118723,17445.0,17444.0,0.02992746]
[1673437744815,3.32624785,17445.0,17444.0,0.02992746]
[1673437745065,2.81118723,17445.0,17444.0,0.02992746]
[1673437750583,2.52456723,17445.0,17444.0,0.02992746]
[1673437751353,2.81118723,17445.0,17444.0,0.02992746]
[1673437752387,3.16264785,17445.0,17444.0,0.02992746]
[1673437752631,3.32684785,17445.0,17444.0,0.02992746]
[1673437753358,3.32684785,17445.0,17444.0,0.02985108]
[1673437754589,2.81178723,17445.0,17444.0,0.02985108]
[1673437755322,3.32684785,17445.0,17444.0,0.02985108]
[1673437755559,2.81178723,17445.0,17444.0,0.02985108]
[1673437755808,2.64758723,17445.0,17444.0,0.02985108]
[1673437756054,2.81178723,17445.0,17444.0,0.02985108]
[1673437758822,2.52516723,17445.0,17444.0,0.02985108]
[1673437759079,2.81178723,17445.0,17444.0,0.02985108]
[1673437765774,2.52516723,17445.0,17444.0,0.02985108]
[1673437768080,2.3098071,17445.0,17444.0,0.58492696]
[1673437769878,2.33509206,17445.0,17444.0,0.58492696]
[1673437771087,2.75061296,17445.0,17444.0,0.02985108]
[1673437771346,2.40677062,17445.0,17444.0,0.02985108]
[1673437772821,2.92367913,17445.0,17444.0,0.02985108]
[1673437773077,3.21030913,17445.0,17444.0,0.02985108]
[1673437774278,2.78051774,17445.0,17444.0,0.02985108]
[1673437774529,2.78051774,17445.0,17444.0,0.02976185]
[1673437777579,3.29557836,17445.0,17444.0,0.02976185]
[1673437777845,3.65450636,17445.0,17444.0,0.02976185]
[1673437779910,3.29557836,17445.0,17444.0,0.02976185]
[1673437780153,3.59557836,17445.0,17444.0,0.02976185]
[1673437780416,3.29557836,17445.0,17444.0,0.02976185]
[1673437780651,3.59557836,17445.0,17444.0,0.02976185]
[1673437780899,3.65450636,17445.0,17444.0,0.02976185]
[1673437782617,3.29557836,17445.0,17444.0,0.02976185]
[1673437783570,3.00894836,17445.0,17444.0,0.02976185]
[1673437783810,3.29558836,17445.0,17444.0,0.02976185]
[1673437784807,3.65451636,17445.0,17444.0,0.02976185]
[1673437785284,3.95451636,17445.0,17444.0,0.02976185]
[1673437785830,3.36787636,17445.0,17444.0,0.02976185]
[1673437786077,3.29558836,17445.0,17444.0,0.02976185]
[1673437787076,3.65451636,17445.0,17444.0,0.02976185]
[1673437788048,3.29558836,17445.0,17444.0,0.02976185]
[1673437788799,3.65451636,17445.0,17444.0,0.02976185]
[1673437789267,3.95451636,17445.0,17444.0,0.02976185]
[1673437789516,3.65451636,17445.0,17444.0,0.02976185]
[1673437789767,3.29558836,17445.0,17444.0,0.02976185]
[1673437790009,3.59558836,17445.0,17444.0,0.02976185]
[1673437790514,3.95451636,17445.0,17444.0,0.02976185]
[1673437790773,3.59558836,17445.0,17444.0,0.02976185]
[1673437791267,3.95451636,17445.0,17444.0,0.02976185]
[1673437791514,3.59558836,17445.0,17444.0,0.02976185]
[1673437792456,3.95451636,17445.0,17444.0,0.02976185]
[1673437792720,3.29558836,17445.0,17444.0,0.02976185]
[1673437792963,3.65451636,17445.0,17444.0,0.02976185]
[1673437793458,3.59558836,17445.0,17444.0,0.02976185]
[1673437793706,3.95451636,17445.0,17444.0,0.02976185]
[1673437794941,3.95451636,17445.0,17444.0,0.02968806]
[1673437795190,3.66787636,17445.0,17444.0,0.02968806]
[1673437795437,3.59558836,17445.0,17444.0,0.02968806]
[1673437795933,4.61313341,17445.0,17444.0,0.01857694]
[1673437796189,4.97002324,17445.0,17444.0,0.01560814]
[1673437796436,5.87701268,17445.0,17444.0,0.01560814]
[1673437797437,5.28347843,17445.0,17443.0,0.00618388]
[1673437797681,3.37214497,17445.0,17444.0,0.004]
[1673437797930,5.21140751,17445.0,17444.0,0.004]
[1673437798178,5.52482403,17445.0,17444.0,0.004]
[1673437798462,5.26526137,17445.0,17443.0,0.00618388]
[1673437798707,2.4024246,17444.0,17443.0,0.01418388]
[1673437798952,4.14289827,17444.0,17443.0,0.01418388]
[1673437799210,4.20027395,17444.0,17443.0,0.00618388]
[1673437799933,4.71506417,17444.0,17443.0,0.00618388]
[1673437800930,4.65768849,17444.0,17443.0,0.00618388]
[1673437801180,4.72506417,17444.0,17443.0,0.01418388]
[1673437801920,4.43838417,17444.0,17443.0,0.01418388]
[1673437802176,4.72508417,17444.0,17443.0,0.01418388]
[1673437802425,4.90988912,17444.0,17443.0,0.01418388]
[1673437802663,4.72508417,17444.0,17443.0,0.01418388]
[1673437803419,5.39609688,17444.0,17443.0,0.01418388]
[1673437804722,4.8811577,17444.0,17443.0,0.01418388]
[1673437806228,0.3,17443.0,17441.0,2.70037501]
[1673437806484,2.85226227,17442.0,17441.0,2.70037501]
[1673437806746,2.90600865,17442.0,17441.0,2.70037501]
[1673437807002,2.49333427,17442.0,17441.0,2.70037501]
[1673437807303,3.12524577,17442.0,17441.0,2.70037501]
[1673437807506,3.2968544,17442.0,17441.0,2.70037501]
[1673437807758,3.12524577,17442.0,17441.0,2.70037501]
[1673437808014,3.14317577,17442.0,17441.0,2.70037501]
[1673437808279,2.98655541,17442.0,17441.0,2.70137501]
[1673437809037,3.57085015,17442.0,17441.0,2.70137501]
[1673437809810,3.83960015,17442.0,17441.0,2.70137501]
[1673437811579,3.6680111,17442.0,17441.0,2.70137501]
[1673437812081,3.83960015,17442.0,17441.0,2.70137501]
[1673437812329,3.6680252,17442.0,17441.0,2.70137501]
[1673437812576,3.66802465,17442.0,17441.0,2.70137501]
[1673437812821,3.83960015,17442.0,17441.0,2.70137501]
[1673437813669,3.72457638,17442.0,17441.0,2.70137501]
[1673437813876,3.42692577,17442.0,17441.0,2.70137501]
[1673437814123,3.83960015,17442.0,17441.0,2.70137501]
[1673437815917,3.42692577,17442.0,17441.0,2.70137501]
[1673437816183,3.83960015,17442.0,17441.0,2.70137501]
[1673437818191,4.26863606,17442.0,17441.0,2.70137501]
[1673437818460,3.73988406,17442.0,17441.0,2.70137501]
[1673437819499,3.39665533,17442.0,17441.0,2.70137501]
[1673437820262,3.74003668,17442.0,17441.0,2.70137501]
[1673437820529,3.39665533,17442.0,17441.0,2.70137501]
[1673437820790,3.74003645,17442.0,17441.0,2.70137501]
[1673437821515,3.74003095,17442.0,17441.0,2.70137501]
[1673437821770,3.74003116,17442.0,17441.0,2.70137501]
[1673437822495,3.78003116,17442.0,17441.0,2.70137501]
[1673437822962,3.61583116,17442.0,17441.0,2.70137501]
[1673437823205,4.02850554,17442.0,17441.0,2.70137501]
[1673437823960,4.02853258,17442.0,17441.0,2.70137501]
[1673437825024,3.68512971,17442.0,17441.0,2.70137501]
[1673437826579,3.68512971,17442.0,17441.0,2.70130952]
[1673437827127,3.68513971,17442.0,17441.0,2.70130952]
[1673437831335,3.68546373,17442.0,17441.0,2.70130952]
[1673437831583,3.2561038,17442.0,17441.0,2.70130952]
[1673437836795,2.84342942,17442.0,17441.0,2.70130952]
[1673437837053,3.2561038,17442.0,17441.0,2.70130952]
[1673437840371,2.9694138,17442.0,17441.0,2.70130952]
[1673437840630,3.2560938,17442.0,17441.0,2.70130952]
[1673437842903,3.4202938,17442.0,17441.0,2.70130952]
[1673437844092,3.1336138,17442.0,17441.0,2.70130952]
[1673437844348,3.4202938,17442.0,17441.0,2.70130952]
[1673437845065,3.93523298,17442.0,17441.0,2.70130952]
[1673437845614,5.05044827,17442.0,17441.0,2.70130952]
[1673437845885,5.24561328,17442.0,17441.0,2.70130952]
[1673437846140,5.54561328,17442.0,17441.0,0.70418644]
[1673437846399,4.00605761,17442.0,17441.0,0.70418644]
[1673437846663,1.8664391,17442.0,17441.0,0.70418644]
[1673437846920,2.12482427,17442.0,17441.0,0.70418644]
[1673437847171,1.98348035,17442.0,17441.0,0.70418644]
[1673437847687,2.12268831,17442.0,17441.0,0.70418644]
[1673437848997,2.12268224,17442.0,17441.0,0.70418644]
[1673437851510,1.98348035,17442.0,17441.0,0.70418644]
[1673437851979,1.81160649,17442.0,17441.0,0.70418644]
[1673437854713,0.4845774,17442.0,17441.0,1.28092611]
[1673437854968,0.22682788,17442.0,17441.0,1.63985411]
[1673437856534,0.22682788,17442.0,17441.0,1.28092611]
[1673437856787,0.80015588,17442.0,17441.0,1.63985411]
[1673437857059,0.80015588,17442.0,17441.0,1.06311444]
[1673437857060,1.22977849,17442.0,17441.0,1.06311444]
[1673437857299,1.80310649,17442.0,17441.0,0.70418644]
[1673437857540,2.53230416,17442.0,17441.0,0.70418644]
[1673437857787,2.94497854,17442.0,17441.0,0.70418644]
[1673437858041,2.74450278,17442.0,17441.0,0.70411214]
[1673437858816,2.76944985,17442.0,17441.0,0.70411214]
[1673437859614,2.77794985,17442.0,17441.0,0.70411214]
[1673437860656,2.64832647,17442.0,17441.0,0.70411214]
[1673437860902,2.34832647,17442.0,17441.0,0.70411214]
[1673437861159,2.64832647,17442.0,17441.0,0.70411214]
[1673437861422,2.70570215,17442.0,17441.0,0.70411214]
[1673437862159,2.99240215,17442.0,17441.0,0.70411214]
[1673437862664,2.69240215,17442.0,17441.0,0.70411214]
[1673437863624,2.99240215,17442.0,17441.0,0.70411214]
[1673437863879,2.69240215,17442.0,17441.0,0.70411214]
[1673437867167,3.06434247,17442.0,17441.0,0.70411214]
[1673437867627,2.63502647,17442.0,17441.0,0.70411214]
[1673437871752,2.89502647,17442.0,17441.0,0.70411214]
[1673437872013,2.59502647,17442.0,17441.0,0.70411214]
[1673437872863,3.18854604,17442.0,17441.0,0.70411214]
[1673437873133,2.75922647,17442.0,17441.0,0.70411214]
[1673437873406,3.18854031,17442.0,17441.0,0.70411214]
[1673437873669,3.18855615,17442.0,17441.0,0.70411214]
[1673437873932,2.90187076,17442.0,17441.0,0.70411214]
[1673437874175,3.18855076,17442.0,17441.0,0.70411214]
[1673437874422,2.47252647,17442.0,17441.0,0.70411214]
[1673437874664,2.75920647,17442.0,17441.0,0.70411214]
[1673437874914,3.18854738,17442.0,17441.0,0.70411214]
[1673437877447,3.18854738,17442.0,17441.0,0.66411214]
[1673437877448,2.775873,17442.0,17441.0,0.66411214]
[1673437877695,3.18688814,17442.0,17441.0,0.66411214]
[1673437877948,3.5303988,17442.0,17441.0,0.66411214]
[1673437878191,3.26164943,17442.0,17441.0,0.66411214]
[1673437878437,2.91813814,17442.0,17441.0,0.66411214]
[1673437881961,3.18687814,17442.0,17441.0,0.66411214]
[1673437884524,3.53038626,17442.0,17441.0,0.66411214]
[1673437885276,3.18687814,17442.0,17441.0,0.66411214]
[1673437886024,3.24372672,17442.0,17441.0,0.66411214]
[1673437886271,3.53039672,17442.0,17441.0,0.66411214]
[1673437888619,3.24372672,17442.0,17441.0,0.66411214]
[1673437888853,3.53039672,17442.0,17441.0,0.66411214]
[1673437890609,3.11938158,17442.0,17441.0,0.66411214]
[1673437891387,2.83271158,17442.0,17441.0,0.66411214]
[1673437891632,3.11938158,17442.0,17441.0,0.66411214]
[1673437892843,2.95518158,17442.0,17441.0,0.66411214]
[1673437893088,2.81195637,17442.0,17441.0,0.66411214]
[1673437894240,2.95616317,17442.0,17441.0,0.66411214]
[1673437894778,2.81195637,17442.0,17441.0,0.66411214]
[1673437895021,2.9562023,17442.0,17441.0,0.66411214]
[1673437895736,2.81195637,17442.0,17441.0,0.66411214]
[1673437895978,2.6403805,17442.0,17441.0,0.66411214]
[1673437897261,2.08305669,17442.0,17441.0,0.66411214]
[1673437897508,1.62473592,17442.0,17441.0,0.66411214]
[1673437899040,1.79638669,17442.0,17441.0,0.66411214]
[1673437901549,3.05523626,17442.0,17441.0,0.66411214]
[1673437901798,3.21001985,17442.0,17441.0,0.66411214]
[1673437902054,3.05523626,17442.0,17441.0,0.66411214]
[1673437902305,3.21001757,17442.0,17441.0,0.66411214]
[1673437904108,3.20992345,17442.0,17441.0,0.66411214]
[1673437906372,2.79890831,17442.0,17441.0,0.66411214]
[1673437906637,3.20992345,17442.0,17441.0,0.66411214]
[1673437907133,2.79890831,17442.0,17441.0,0.66411214]
[1673437907705,2.79915234,17442.0,17441.0,0.66411214]
[1673437908153,2.644127,17442.0,17441.0,0.66411214]
[1673437909977,2.79916883,17442.0,17441.0,0.66411214]
[1673437910229,2.644127,17442.0,17441.0,0.66411214]
[1673437911204,2.79917219,17442.0,17441.0,0.66411214]
[1673437911448,2.644127,17442.0,17441.0,0.66411214]
[1673437911702,2.79918518,17442.0,17441.0,0.66411214]
[1673437911955,2.79912307,17442.0,17441.0,0.66411214]
[1673437912203,2.47255485,17442.0,17441.0,0.66411214]
[1673437914221,2.64441541,17442.0,17441.0,0.66411214]
[1673437914466,2.47255485,17442.0,17441.0,0.66411214]
[1673437918974,2.90189576,17442.0,17441.0,0.66411214]
[1673437919506,2.644127,17442.0,17441.0,0.66411214]
[1673437921279,3.05514214,17442.0,17441.0,0.66411214]
[1673437921532,2.47258809,17442.0,17441.0,0.66411214]
[1673437927864,2.47258809,17442.0,17441.0,0.66399214]
[1673437928621,2.30097011,17442.0,17441.0,0.66399214]
[1673437928886,2.30097011,17442.0,17441.0,1.02292014]
[1673437928887,2.64448608,17442.0,17441.0,1.02292014]
[1673437929138,2.47258809,17442.0,17441.0,0.66399214]
[1673437931465,0.03985295,17442.0,17441.0,3.60769866]
[1673437931718,0.03985295,17442.0,17441.0,5.14156186]
[1673437931968,0.03985295,17442.0,17441.0,4.71268034]
[1673437932469,0.03985295,17442.0,17441.0,4.88408281]
[1673437933217,0.03985295,17442.0,17441.0,4.71312317]
[1673437933489,0.03985295,17442.0,17441.0,4.54195474]
[1673437933743,0.03985295,17442.0,17441.0,4.1309396]
[1673437934773,0.03985295,17442.0,17441.0,4.71312317]
[1673437935019,0.03985295,17442.0,17441.0,4.13093444]
[1673437935276,0.03985295,17442.0,17441.0,4.71312317]
[1673437935537,0.03985295,17442.0,17441.0,4.13086462]
[1673437935786,0.03985295,17442.0,17441.0,4.54187976]
[1673437936279,0.03985295,17442.0,17441.0,4.13086462]
[1673437936525,0.03985295,17442.0,17441.0,4.54187976]
[1673437936772,0.03985295,17442.0,17441.0,4.70422562]
[1673437937029,0.03985295,17442.0,17441.0,2.85418909]
[1673437937290,0.03985295,17442.0,17441.0,3.02595644]
[1673437938360,0.03985295,17442.0,17441.0,3.28387832]
[1673437938831,0.03985295,17442.0,17441.0,3.95959593]
[1673437939353,0.03985295,17442.0,17441.0,3.28387832]
[1673437939609,0.03985295,17442.0,17441.0,3.02595644]
[1673437941646,0.03985295,17442.0,17441.0,3.43697158]
[1673437941912,0.03985295,17442.0,17441.0,4.01033258]
[1673437942163,0.03985295,17442.0,17441.0,4.26825446]
[1673437942418,0.03985295,17442.0,17441.0,4.01033258]
[1673437942663,0.03985295,17442.0,17441.0,4.26825446]
[1673437943158,0.03985295,17442.0,17441.0,4.01033258]
[1673437943917,0.02494707,17442.0,17441.0,4.00933258]
[1673437944172,0.02994707,17442.0,17441.0,4.13533258]
[1673437946150,0.02994707,17442.0,17441.0,5.06870162]
[1673437947486,0.02994707,17442.0,17441.0,5.64206262]
[1673437947744,0.02994707,17442.0,17441.0,5.64175944]
[1673437947996,0.02994707,17442.0,17441.0,4.96661546]
[1673437948260,0.02994707,17442.0,17441.0,5.64175758]
[1673437949835,0.02987045,17442.0,17441.0,5.64175758]
[1673437953825,0.02987045,17442.0,17441.0,5.12138185]
[1673437954108,0.02987045,17442.0,17441.0,5.29262526]
[1673437954855,0.02987045,17442.0,17441.0,5.81588668]
[1673437955366,0.02987045,17442.0,17441.0,5.64444051]
[1673437955874,0.02987045,17442.0,17441.0,5.81588668]
[1673437956125,0.02987045,17442.0,17441.0,5.6444439]
[1673437957363,0.02987045,17442.0,17441.0,5.23342876]
[1673437957597,0.02987045,17442.0,17441.0,5.64462707]
[1673437962896,0.02987045,17442.0,17441.0,5.48092707]
[1673437963406,0.02987045,17442.0,17441.0,5.65236985]
[1673437965442,0.02987045,17442.0,17441.0,5.65188012]
[1673437965695,0.02987045,17442.0,17441.0,5.65188008]
[1673437965934,0.02987045,17442.0,17441.0,5.65187898]
[1673437966217,0.02987045,17442.0,17441.0,5.82332949]
[1673437966424,0.02987045,17442.0,17441.0,5.65188323]
[1673437966676,0.02987045,17442.0,17441.0,6.08076475]
[1673437966932,0.02987045,17442.0,17441.0,5.82332949]
[1673437969397,0.02987045,17442.0,17441.0,5.48031873]
[1673437970397,0.02987045,17442.0,17441.0,5.41275986]
[1673437971127,0.02987045,17442.0,17441.0,5.823775]
[1673437971379,0.02987045,17442.0,17441.0,5.48031873]
[1673437971874,0.02987045,17442.0,17441.0,5.06930359]
[1673437972116,0.02987045,17442.0,17441.0,5.41297154]
[1673437972381,0.02987045,17442.0,17441.0,4.83940796]
[1673437972855,0.02987045,17442.0,17441.0,4.83440796]
[1673437974138,0.02987045,17442.0,17441.0,4.83442825]
[1673437974384,0.02987045,17442.0,17441.0,4.49074001]
[1673437974883,0.02987045,17442.0,17441.0,4.83442025]
[1673437975134,0.02987045,17442.0,17441.0,4.49074001]
[1673437979506,0.02987045,17442.0,17441.0,4.06185849]
[1673437980551,0.02987045,17442.0,17441.0,4.49161145]